fUST/lending_fUST_20241028
["ID","MTS","AMOUNT","RATE_DAILY","PERIOD"]
[340920736,1730097041080,-151.0,0.0002499,7]
[340920737,1730097041090,-151.0,0.0002499,7]
[340920738,1730097041101,-209.69669998,0.00024999,2]
[340920739,1730097041114,-209.82072949,0.00024999,2]
[340920740,1730097041124,-139887.11172624,0.00025,2]
[340920741,1730097041134,-1305.56385038,0.00025,2]
[340920742,1730097041146,-503.00420366,0.00025,2]
[340920743,1730097041156,-151.0,0.00025,7]
[340920744,1730097041168,-151.0,0.00025,7]
[340920745,1730097041178,-151.0,0.00025,7]
[340920746,1730097041187,-151.0,0.00025,7]
[340920747,1730097041198,-151.0,0.00025,7]
[340920748,1730097041210,-151.0,0.00025,7]
[340920749,1730097041220,-151.0,0.00025,7]
[340920750,1730097041230,-351.014699,0.00025,7]
[340920751,1730097041240,-151.0,0.00025,7]
[340920752,1730097041251,-151.0,0.00025,7]
[340920753,1730097041263,-151.0,0.00025,7]
[340920754,1730097041274,-151.0,0.00025,7]
[340920755,1730097041285,-151.0,0.00025,7]
[340920756,1730097041294,-151.0,0.00025,7]
[340920757,1730097041303,-355.017156,0.00025,7]
[340920758,1730097041312,-355.017156,0.00025,7]
[340920759,1730097041323,-151.0,0.00025,7]
[340920760,1730097041333,-151.0,0.00025,7]
[340920761,1730097041343,-151.0,0.00025,7]
[340920762,1730097041354,-151.0,0.00025,7]
[340920763,1730097041365,-203.248459,0.00025,7]
[340920764,1730097041375,-151.0,0.00025,7]
[340920765,1730097041384,-151.0,0.00025,7]
[340920766,1730097041394,-203.248459,0.00025,7]
[340920767,1730097041404,-151.0,0.00025,7]
[340920768,1730097041416,-440.910509,0.00025,7]
[340920769,1730097041426,-22594.64372472,0.00025,2]
[340920770,1730097041435,-440.910509,0.00025,7]
[340920771,1730097041445,-151.0,0.00025,7]
[340920772,1730097041456,-173.566689,0.00025,7]
[340920773,1730097041466,-192.239235,0.00025,7]
[340920774,1730097041477,-192.239235,0.00025,7]
[340920775,1730097041488,-192.239235,0.00025,7]
[340920776,1730097041500,-192.239235,0.00025,7]
[340920777,1730097041513,-151.0,0.00025,7]
[340920778,1730097041525,-151.0,0.00025,7]
[340920779,1730097041534,-151.0,0.00025,7]
[340920780,1730097041544,-151.0,0.00025,7]
[340920781,1730097041554,-151.0,0.00025,7]
[340920782,1730097041564,-151.0,0.00025,7]
[340920783,1730097041575,-162.295327,0.00025,7]
[340920784,1730097041585,-162.295327,0.00025,7]
[340920785,1730097041595,-162.295327,0.00025,7]
[340920786,1730097041606,-162.295327,0.00025,7]
[340920787,1730097041617,-151.0,0.00025,7]
[340920788,1730097041627,-151.0,0.00025,7]
[340920789,1730097041636,-151.0,0.00025,7]
[340920790,1730097041646,-174.414342,0.00025,7]
[340920791,1730097041656,-151.0,0.00025,7]
[340920792,1730097041666,-151.0,0.00025,7]
[340920793,1730097041678,-151.0,0.00025,7]
[340920794,1730097041688,-152.279183,0.00025021,7]
[340920795,1730097041698,-186.495207,0.00025021,7]
[340920796,1730097041709,-151.0,0.00025021,7]
[340920797,1730097041720,-351.014699,0.00025021,7]
[340920798,1730097041731,-151.0,0.00025021,7]
[340920799,1730097041741,-151.0,0.00025021,7]
[340920800,1730097041751,-151.0,0.00025021,7]
[340920801,1730097041763,-151.0,0.00025021,7]
[340920802,1730097041772,-151.0,0.00025021,7]
[340920803,1730097041782,-151.0,0.00025021,7]
[340920804,1730097041792,-355.017156,0.00025021,7]
[340920805,1730097041801,-355.017156,0.00025021,7]
[340920806,1730097041812,-151.0,0.00025021,7]
[340920807,1730097041822,-185.783799,0.00025021,7]
[340920808,1730097041832,-151.0,0.00025021,7]
[340920809,1730097041842,-151.0,0.00025021,7]
[340920810,1730097041852,-203.248459,0.00025021,7]
[340920811,1730097041861,-151.0,0.00025021,7]
[340920812,1730097041871,-269.687783,0.00025021,7]
[340920813,1730097041880,-203.248459,0.00025021,7]
[340920814,1730097041890,-440.910509,0.00025021,7]
[340920815,1730097041899,-440.910509,0.00025021,7]
[340920816,1730097041909,-151.0,0.00025021,7]
[340920817,1730097041918,-151.0,0.0002503,7]
[340920818,1730097041928,-351.014699,0.0002503,7]
[340920819,1730097041938,-351.014699,0.0002503,7]
[340920820,1730097041947,-151.0,0.0002503,7]
[340920821,1730097041957,-151.0,0.0002503,7]
[340920822,1730097041966,-151.0,0.0002503,7]
[340920823,1730097041976,-151.0,0.0002503,7]
[340920824,1730097041986,-151.0,0.0002503,7]
[340920825,1730097041995,-151.0,0.0002503,7]
[340920826,1730097042005,-355.017156,0.0002503,7]
[340920827,1730097042015,-355.017156,0.0002503,7]
[340920828,1730097042026,-151.0,0.0002503,7]
[340920829,1730097042036,-151.0,0.0002503,7]
[340920830,1730097042047,-151.0,0.0002503,7]
[340920831,1730097042057,-203.248459,0.0002503,7]
[340920832,1730097042068,-203.248459,0.0002503,7]
[340920833,1730097042082,-299.28650545,0.0002503,7]
[340920844,1730097043553,-141.62400355,0.0002503,7]
[340920845,1730097043562,-314.12618447,0.0002503,7]
[340920854,1730097550641,191.986263,0.00013973,2]
[340920855,1730097550843,191.986263,0.00020447,2]
[340920859,1730098051516,300.0,0.00021,3]
[340920860,1730098121820,300.0,0.00021,2]
[340920861,1730098156143,-166.666666,0.00023661,2]
[340920862,1730098183884,172.787636,0.00013973,2]
[340920863,1730098184089,172.787636,0.00020447,2]
[340920864,1730098212843,166.666666,0.00023255,2]
[340920985,1730098246767,-6339.92192054,0.00024508,2]
[340920986,1730098246776,-1647.25785413,0.00024557,2]
[340920987,1730098246786,-74.93022533,0.00024656,2]
[340920990,1730098414159,273.37336231,0.00021,2]
[340920991,1730098422045,299.46473195,0.00021,2]
[340920992,1730098488398,273.37336231,0.00021,2]
[340920993,1730098503642,273.37336231,0.00021,2]
[340920994,1730098520320,273.37336231,0.00021,2]
[340920995,1730098536005,273.37336231,0.00021,2]
[340920996,1730098552321,273.37336231,0.00021,2]
[340920997,1730098555699,10000.0,0.00036131,30]
[340920998,1730098559567,10000.0,0.00036131,30]
[340920999,1730098561399,10000.0,0.00036131,30]
[340921000,1730098568357,273.37336231,0.00021,2]
[340921001,1730098568489,8650.0,0.00036131,30]
[340921002,1730098583725,273.37336231,0.00021,2]
[340921003,1730098600552,273.37336231,0.00021,2]
[340921004,1730098617524,273.37336231,0.00021,2]
[340921005,1730098625360,273.37336231,0.00021,2]
[340921006,1730098634203,273.37336231,0.00021,2]
[340921007,1730098651675,273.37336231,0.00021,2]
[340921008,1730098659529,273.37336231,0.00021,2]
[340921009,1730098667547,273.37336231,0.00021,2]
[340921010,1730098675317,273.37336231,0.00021,2]
[340921011,1730098683508,273.37336231,0.00021,2]
[340921012,1730098689341,182.328282,0.00013973,2]
[340921013,1730098691330,273.37336231,0.00021,2]
[340921014,1730098699475,273.37336231,0.00021,2]
[340921015,1730098707876,273.37336231,0.00021,2]
[340921016,1730098716666,546.74672462,0.00021,2]
[340921017,1730098725046,546.74672462,0.00021,2]
[340921018,1730098733506,273.37336231,0.00021,2]
[340921019,1730098741288,273.37336231,0.00021,2]
[340921020,1730098749951,273.37336231,0.00021,2]
[340921021,1730098757694,273.37336231,0.00021,2]
[340921022,1730098766254,273.37336231,0.00021,2]
[340921023,1730098775148,273.37336231,0.00021,2]
[340921024,1730098783912,273.37336231,0.00021,2]
[340921025,1730098792316,273.37336231,0.00021,2]
[340921026,1730098801650,273.37336231,0.00021,2]
[340921027,1730098809550,273.37336231,0.00021,2]
[340921028,1730098818577,273.37336231,0.00021,2]
[340921029,1730098826635,273.37336231,0.00021,2]
[340921030,1730098834708,273.37336231,0.00021,2]
[340921031,1730098843142,273.37336231,0.00021,2]
[340921032,1730098851225,273.37336231,0.00021,2]
[340921033,1730098859233,273.37336231,0.00021,2]
[340921034,1730098867269,273.37336231,0.00021,2]
[340921035,1730098875132,273.37336231,0.00021,2]
[340921036,1730098883153,273.37336231,0.00021,2]
[340921037,1730098891008,273.37336231,0.00021,2]
[340921038,1730098899582,273.37336231,0.00021,2]
[340921039,1730098908213,273.37336231,0.00021,2]
[340921040,1730098917014,273.37336231,0.00021,2]
[340921041,1730098924833,273.37336231,0.00021,2]
[340921042,1730098933992,273.37336231,0.00021,2]
[340921043,1730098941938,273.37336231,0.00021,2]
[340921044,1730098950011,273.37336231,0.00021,2]
[340921045,1730098958415,273.37336231,0.00021,2]
[340921046,1730098967111,273.37336231,0.00021,2]
[340921047,1730098975019,273.37336231,0.00021,2]
[340921048,1730098982845,273.37336231,0.00021,2]
[340921049,1730098991275,273.37336231,0.00021,2]
[340921050,1730098999891,273.37336231,0.00021,2]
[340921051,1730099008445,273.37336231,0.00021,2]
[340921052,1730099017603,273.37336231,0.00021,2]
[340921053,1730099025515,273.37336231,0.00021,2]
[340921054,1730099033604,273.37336231,0.00021,2]
[340921055,1730099041501,273.37336231,0.00021,2]
[340921056,1730099051231,273.37336231,0.00021,2]
[340921057,1730099059633,273.37336231,0.00021,2]
[340921058,1730099067772,273.37336231,0.00021,2]
[340921059,1730099075577,273.37336231,0.00021,2]
[340921060,1730099084353,273.37336231,0.00021,2]
[340921061,1730099092415,273.37336231,0.00021,2]
[340921062,1730099100539,273.37336231,0.00021,2]
[340921063,1730099109013,273.37336231,0.00021,2]
[340921064,1730099117483,273.37336231,0.00021,2]
[340921065,1730099125340,273.37336231,0.00021,2]
[340921066,1730099134491,273.37336231,0.00021,2]
[340921067,1730099142292,273.37336231,0.00021,2]
[340921068,1730099150353,273.37336231,0.00021,2]
[340921070,1730099158280,273.37336231,0.00021,2]
[340921071,1730099166820,273.37336231,0.00021,2]
[340921072,1730099172998,163.693549,0.00013973,2]
[340921073,1730099173205,163.693549,0.00020807,2]
[340921074,1730099174703,273.37336231,0.00021,2]
[340921075,1730099182631,273.37336231,0.00021,2]
[340921076,1730099198279,-167.074885,0.00022781,2]
[340921077,1730099198309,-157.8813436,0.00022917,2]
[340921078,1730099198338,-97.34437521,0.00023149,2]
[340921079,1730099206315,273.37336231,0.00021,2]
[340921080,1730099214081,273.37336231,0.00021,2]
[340921081,1730099222960,273.37336231,0.00021,2]
[340921082,1730099230745,273.37336231,0.00021,2]
[340921083,1730099238821,273.37336231,0.00021,2]
[340921084,1730099269158,273.37336231,0.00021,2]
[340921085,1730099291669,273.37336231,0.00021,2]
[340921086,1730099299575,273.37336231,0.00021,2]
[340921099,1730099431838,-167.074885,0.0002282,2]
[340921101,1730099431848,-952.6175618,0.00023131,2]
[340921103,1730099431858,-117.75700189,0.00023149,2]
[340921105,1730099431868,-1794.1447435,0.00023159,2]
[340921107,1730099431880,-1527.6364356,0.00023206,2]
[340921109,1730099431889,-162.7646645,0.00023353,2]
[340921111,1730099431898,-167.074885,0.00023857,2]
[340921113,1730099431908,-300.0,0.00024115,2]
[340921115,1730099431918,-300.0,0.00024115,2]
[340921117,1730099431928,-6339.92192054,0.00024116,2]
[340921119,1730099431939,-153.0,0.00024176,2]
[340921121,1730099431949,-153.0,0.00024176,2]
[340921123,1730099431959,-153.0,0.00024176,2]
[340921125,1730099431969,-153.0,0.00024176,2]
[340921127,1730099431978,-153.0,0.00024176,2]
[340921129,1730099431988,-153.0,0.00024176,2]
[340921132,1730099431999,-153.0,0.00024176,2]
[340921134,1730099432010,-153.0,0.00024176,2]
[340921136,1730099432020,-153.0,0.00024176,2]
[340921138,1730099432031,-153.0,0.00024176,2]
[340921140,1730099432040,-153.0,0.00024176,2]
[340921142,1730099432051,-153.0,0.00024176,2]
[340921144,1730099432061,-153.0,0.00024176,2]
[340921146,1730099432071,-3566.34622047,0.00024176,2]
[340921148,1730099432081,-1000.0,0.000242,2]
[340921150,1730099432091,-302.5509068,0.00024493,2]
[340921152,1730099432101,-1441.35062232,0.00024536,2]
[340921154,1730099432111,-275.665589,0.00024537,2]
[340921157,1730099432123,-275.66558899,0.00024542,2]
[340921158,1730099432133,-275.66558899,0.00024547,2]
[340921159,1730099432143,-275.66558899,0.00024552,2]
[340921160,1730099432153,-275.66558899,0.00024557,2]
[340921161,1730099432163,-153.0,0.000246,2]
[340921162,1730099432172,-260.69920645,0.00024636,2]
[340921163,1730099432182,-176.3794254,0.00024636,2]
[340921164,1730099432195,-500.0,0.00024636,2]
[340921165,1730099432400,-500.0,0.00024636,2]
[340921166,1730099432411,-500.0,0.00024636,2]
[340921167,1730099432420,-500.0,0.00024636,2]
[340921168,1730099432430,-500.0,0.00024636,2]
[340921169,1730099432441,-500.0,0.00024636,2]
[340921170,1730099432451,-500.0,0.00024636,2]
[340921171,1730099432460,-500.0,0.00024636,2]
[340921172,1730099432469,-500.0,0.00024636,2]
[340921173,1730099432479,-500.0,0.00024636,2]
[340921174,1730099432488,-500.0,0.00024636,2]
[340921175,1730099432498,-500.0,0.00024636,2]
[340921176,1730099432507,-500.0,0.00024636,2]
[340921177,1730099432517,-500.0,0.00024636,2]
[340921178,1730099432526,-500.0,0.00024636,2]
[340921179,1730099432535,-500.0,0.00024636,2]
[340921180,1730099432545,-500.0,0.00024636,2]
[340921181,1730099432554,-500.0,0.00024636,2]
[340921182,1730099432564,-588.9616188,0.00024636,2]
[340921183,1730099432574,-500.0,0.00024636,2]
[340921184,1730099432583,-500.0,0.00024636,2]
[340921185,1730099432593,-500.0,0.00024636,2]
[340921186,1730099432603,-500.0,0.00024636,2]
[340921187,1730099432612,-377.90493374,0.00024636,2]
[340921188,1730099432623,-500.0,0.00024636,2]
[340921189,1730099432633,-500.0,0.00024636,2]
[340921190,1730099432642,-500.0,0.00024636,2]
[340921191,1730099432652,-500.0,0.00024636,2]
[340921192,1730099432661,-500.0,0.00024636,2]
[340921193,1730099432671,-521.17037543,0.00024636,2]
[340921194,1730099432680,-500.0,0.00024636,2]
[340921195,1730099432690,-500.0,0.00024636,2]
[340921196,1730099432699,-500.0,0.00024636,2]
[340921197,1730099432708,-375.32277041,0.00024636,2]
[340921198,1730099432718,-290.20264727,0.00024636,2]
[340921199,1730099432727,-28681.44435622,0.00024637,3]
[340921200,1730099432740,-292.0270418,0.00024637,3]
[340921204,1730099438200,-3000.0,0.00024637,3]
[340921205,1730099438292,-4953.4,0.00024637,3]
[340921206,1730099438396,-38327.02217338,0.00024637,3]
[340921207,1730099438406,-15029.68815871,0.00024637,3]
[340921212,1730099440064,-88422.32386529,0.00024637,3]
[340921213,1730099440074,-500.0,0.00024646,2]
[340921214,1730099440085,-202.13334893,0.00024646,2]
[340921215,1730099440097,-225.8091496,0.00024646,2]
[340921216,1730099440109,-234.79543347,0.00024646,2]
[340921217,1730099440119,-34956.88221447,0.00024647,3]
[340921220,1730099445106,-20662.29639885,0.00024647,3]
[340921221,1730099445183,-46.92228931,0.00024647,3]
[340921222,1730099445197,-30509.80981294,0.00024647,3]
[340921239,1730099445977,-64331.87642743,0.00024647,3]
[340921240,1730099445990,-129315.01503,0.00024647,3]
[340921241,1730099446001,-151.0,0.00024647,7]
[340921242,1730099446012,-151.0,0.00024647,7]
[340921243,1730099446022,-153.791388,0.00024647,7]
[340921244,1730099446034,-153.791388,0.00024647,7]
[340921245,1730099446045,-153.791388,0.00024647,7]
[340921246,1730099446056,-153.791388,0.00024647,7]
[340921247,1730099446066,-151.0,0.00024647,7]
[340921248,1730099446077,-151.0,0.00024647,7]
[340921249,1730099446087,-329.940898,0.00024647,7]
[340921250,1730099446099,-329.940898,0.00024647,7]
[340921251,1730099446112,-151.0,0.00024647,7]
[340921252,1730099446123,-151.0,0.00024647,7]
[340921253,1730099446134,-329.940898,0.00024647,7]
[340921254,1730099446143,-329.940898,0.00024647,7]
[340921255,1730099446154,-185.783799,0.00024647,7]
[340921256,1730099446165,-151.0,0.00024647,7]
[340921257,1730099446175,-151.0,0.00024647,7]
[340921258,1730099446186,-500.0,0.00024657,4]
[340921259,1730099446197,-500.0,0.00024657,4]
[340921260,1730099446208,-500.0,0.00024657,4]
[340921261,1730099446218,-633.39938545,0.00024657,4]
[340921262,1730099446228,-219.29629326,0.00024657,4]
[340921263,1730099446238,-500.0,0.00024657,4]
[340921264,1730099446248,-504.83724633,0.00024657,4]
[340921265,1730099446258,-500.0,0.00024657,4]
[340921266,1730099446268,-500.0,0.00024657,4]
[340921267,1730099446278,-504.67149836,0.00024657,4]
[340921268,1730099446290,-500.0,0.00024657,4]
[340921269,1730099446299,-503.05786466,0.00024657,4]
[340921270,1730099446310,-500.0,0.00024657,4]
[340921271,1730099446320,-173.890349,0.00024657,7]
[340921272,1730099446330,-173.890349,0.00024657,7]
[340921273,1730099446339,-173.890349,0.00024657,7]
[340921274,1730099446349,-173.890349,0.00024657,7]
[340921275,1730099446359,-173.890349,0.00024657,7]
[340921276,1730099446369,-173.890349,0.00024657,7]
[340921277,1730099446379,-173.890349,0.00024657,7]
[340921278,1730099446390,-501.45960217,0.00024657,4]
[340921279,1730099446399,-173.890349,0.00024657,7]
[340921280,1730099446409,-173.890349,0.00024657,7]
[340921281,1730099446419,-173.890349,0.00024657,7]
[340921282,1730099446428,-173.890349,0.00024657,7]
[340921283,1730099446438,-173.890349,0.00024657,7]
[340921284,1730099446447,-506.84665693,0.00024657,4]
[340921285,1730099446457,-500.0,0.00024657,4]
[340921286,1730099446466,-500.0,0.00024657,4]
[340921287,1730099446476,-502.79970953,0.00024657,4]
[340921288,1730099446486,-211.68420626,0.00024657,4]
[340921289,1730099446496,-500.0,0.00024657,4]
[340921290,1730099446506,-503.64498767,0.00024657,4]
[340921291,1730099446515,-501.96121184,0.00024657,4]
[340921292,1730099446525,-591.57401272,0.00024657,4]
[340921293,1730099446535,-500.0,0.00024657,4]
[340921294,1730099446544,-501.09589396,0.00024657,2]
[340921295,1730099446554,-500.0,0.00024657,4]
[340921296,1730099446564,-151.0,0.00024657,7]
[340921297,1730099446574,-151.0,0.00024657,7]
[340921298,1730099446585,-153.791965,0.00024657,7]
[340921299,1730099446596,-500.0,0.00024657,4]
[340921300,1730099446606,-500.0,0.00024657,4]
[340921301,1730099446617,-500.0,0.00024657,4]
[340921302,1730099446627,-571.605106,0.00024657,4]
[340921303,1730099446638,-480.00603442,0.00024657,4]
[340921304,1730099446648,-500.0,0.00024657,4]
[340921305,1730099446657,-528.00818458,0.00024657,4]
[340921306,1730099446667,-503.61334432,0.00024657,4]
[340921307,1730099446678,-500.0,0.00024657,4]
[340921308,1730099446689,-523.09201044,0.00024657,4]
[340921309,1730099446698,-151.0,0.00024657,7]
[340921310,1730099446708,-151.0,0.00024657,7]
[340921311,1730099446717,-151.0,0.00024657,7]
[340921312,1730099446727,-151.0,0.00024657,7]
[340921313,1730099446736,-500.0,0.00024657,4]
[340921314,1730099446746,-151.0,0.00024657,7]
[340921315,1730099446755,-151.0,0.00024657,7]
[340921316,1730099446765,-500.0,0.00024657,4]
[340921317,1730099446775,-500.0,0.00024657,4]
[340921318,1730099446785,-500.0,0.00024657,4]
[340921319,1730099446795,-151.0,0.00024657,7]
[340921320,1730099446804,-151.0,0.00024657,7]
[340921321,1730099446813,-152.458569,0.00024657,7]
[340921322,1730099446822,-500.0,0.00024657,4]
[340921323,1730099446832,-500.0,0.00024657,4]
[340921324,1730099446841,-177.05657208,0.00024657,4]
[340921325,1730099446850,-478.94735784,0.00024657,4]
[340921326,1730099446860,-500.0,0.00024657,4]
[340921327,1730099446869,-500.0,0.00024657,4]
[340921328,1730099446878,-500.0,0.00024657,4]
[340921329,1730099446888,-2500.62,0.00024657,4]
[340921330,1730099446898,-500.0,0.00024657,4]
[340921331,1730099446907,-500.0,0.00024657,4]
[340921332,1730099446916,-200.0,0.00024657,4]
[340921333,1730099446926,-155.56918629,0.00024657,4]
[340921334,1730099446935,-609.66011603,0.00024657,4]
[340921335,1730099446946,-500.0,0.00024657,4]
[340921336,1730099446959,-508.96379449,0.00024657,4]
[340921337,1730099446968,-504.35117759,0.00024657,4]
[340921338,1730099446978,-500.0,0.00024657,4]
[340921339,1730099446988,-501.40877786,0.00024657,4]
[340921340,1730099446997,-500.0,0.00024657,4]
[340921341,1730099447006,-526.05191765,0.00024657,4]
[340921342,1730099447015,-500.0,0.00024657,4]
[340921343,1730099447024,-500.0,0.00024657,4]
[340921344,1730099447035,-500.0,0.00024657,4]
[340921345,1730099447045,-151.0,0.00024657,7]
[340921346,1730099447056,-151.0,0.00024657,7]
[340921347,1730099447066,-151.0,0.00024657,7]
[340921348,1730099447075,-151.0,0.00024657,7]
[340921349,1730099447087,-151.0,0.00024657,7]
[340921350,1730099447096,-151.0,0.00024657,7]
[340921351,1730099447105,-503.88884805,0.00024657,4]
[340921352,1730099447115,-502.17950653,0.00024657,4]
[340921353,1730099447125,-500.0,0.00024657,4]
[340921354,1730099447138,-500.0,0.00024657,4]
[340921355,1730099447148,-500.0,0.00024657,4]
[340921356,1730099447159,-500.0,0.00024657,4]
[340921357,1730099447169,-503.8607097,0.00024657,4]
[340921358,1730099447179,-500.0,0.00024657,4]
[340921359,1730099447188,-502.43263858,0.00024657,4]
[340921360,1730099447197,-503.98208709,0.00024657,4]
[340921361,1730099447207,-500.0,0.00024657,4]
[340921362,1730099447216,-502.99388346,0.00024657,4]
[340921363,1730099447227,-500.0,0.00024657,4]
[340921364,1730099447236,-151.0,0.00024657,7]
[340921365,1730099447247,-151.0,0.00024657,7]
[340921366,1730099447257,-151.0,0.00024657,7]
[340921367,1730099447268,-151.0,0.00024657,7]
[340921368,1730099447278,-151.0,0.00024657,7]
[340921369,1730099447294,-151.0,0.00024657,7]
[340921370,1730099447305,-151.0,0.00024657,7]
[340921371,1730099447316,-151.0,0.00024657,7]
[340921372,1730099447327,-500.0,0.00024657,4]
[340921373,1730099447338,-500.0,0.00024657,4]
[340921374,1730099447347,-500.0,0.00024657,4]
[340921375,1730099447357,-500.0,0.00024657,4]
[340921376,1730099447367,-500.0,0.00024657,4]
[340921377,1730099447378,-500.0,0.00024657,4]
[340921378,1730099447388,-502.35767785,0.00024657,4]
[340921379,1730099447397,-284.00517,0.00024657,4]
[340921380,1730099673500,158.017843,0.00013973,2]
[340921381,1730100048004,-260.0,0.00022,2]
[340921382,1730100188511,163.693549,0.00013973,2]
[340921383,1730100189471,-163.693549,0.00021661,2]
[340921385,1730100347591,-167.0,0.00022,2]
[340921607,1730100635800,-260.0,0.00022192,2]
[340921608,1730100635811,-166.666666,0.00022654,2]
[340921609,1730100635823,-260.0,0.00023014,2]
[340921610,1730100635833,-5789.500387,0.00023206,2]
[340921611,1730100635843,-166.666666,0.00023272,2]
[340921612,1730100635853,-158.108648,0.00023373,2]
[340921613,1730100635865,-153.0,0.00023741,2]
[340921614,1730100635879,-178.9012465,0.00023836,2]
[340921615,1730100635893,-300.0,0.0002384,2]
[340921616,1730100635907,-153.0,0.00023841,2]
[340921617,1730100635918,-239.078009,0.00023841,2]
[340921618,1730100635930,-153.0,0.00023841,2]
[340921619,1730100635940,-153.0,0.00023841,2]
[340921620,1730100635950,-153.0,0.00023841,2]
[340921621,1730100635961,-166.666666,0.0002389,2]
[340921622,1730100635973,-260.0,0.00024164,2]
[340921623,1730100635984,-2131.87246546,0.00024407,2]
[340921624,1730100635995,-500.0,0.00024409,2]
[340921625,1730100636007,-500.74103861,0.00024409,2]
[340921626,1730100636019,-500.0,0.00024409,2]
[340921627,1730100636030,-500.0,0.00024409,2]
[340921628,1730100636043,-500.0,0.00024409,2]
[340921629,1730100636053,-379.79820743,0.00024409,2]
[340921660,1730100638293,-37.22709303,0.00024409,2]
[340921663,1730100638307,-500.0,0.00024409,2]
[340921665,1730100638319,-500.0,0.00024409,2]
[340921667,1730100638333,-501.4225386,0.00024409,2]
[340921670,1730100638347,-500.0,0.00024409,2]
[340921672,1730100638358,-365.73030599,0.00024409,2]
[340921674,1730100638370,-308.38197658,0.00024409,2]
[340921677,1730100638382,-587.80263481,0.00024409,2]
[340921679,1730100638393,-500.0,0.00024409,2]
[340921680,1730100638405,-500.0,0.00024409,2]
[340921681,1730100638416,-500.0,0.00024409,2]
[340921682,1730100638427,-500.0,0.00024409,2]
[340921683,1730100638436,-500.0,0.00024409,2]
[340921684,1730100638446,-500.0,0.00024409,2]
[340921685,1730100638456,-500.0,0.00024409,2]
[340921686,1730100638466,-17542.63818911,0.0002441,2]
[340921687,1730100638565,-131488.541628,0.0002441,2]
[340921688,1730100638578,-166.666666,0.00024507,2]
[340921689,1730100638590,-270.52,0.0002453,2]
[340921690,1730100638601,-4558.61836186,0.00024552,2]
[340921691,1730100638612,-6486.79645694,0.00024557,2]
[340921692,1730100638623,-190.93443965,0.00024636,2]
[340921693,1730100638634,-500.0,0.00024636,2]
[340921694,1730100638643,-319.19958645,0.00024636,2]
[340921695,1730100638656,-168.18728457,0.00024636,2]
[340921696,1730100638668,-342.14574957,0.00024636,2]
[340921697,1730100638678,-500.0,0.00024636,2]
[340921698,1730100638689,-664.77,0.00024636,3]
[340921699,1730100638700,-340.27148918,0.00024636,2]
[340921700,1730100638711,-29924.4221423,0.00024637,3]
[340921701,1730100638721,-44656.6800864,0.00024637,3]
[340921702,1730100638731,-101416.46162194,0.00024647,3]
[340921715,1730100643514,-8299.45125959,0.00024647,3]
[340921716,1730100643527,-3730.45881018,0.00024647,3]
[340921717,1730100643540,-880.1209974,0.00024647,3]
[340921741,1730100644121,-499.99999999,0.00024409,2]
[340921743,1730100644133,-792.93930454,0.00024647,3]
[340921755,1730100644242,-44477.48609835,0.00024647,3]
[340921758,1730100644253,-178626.720346,0.00024647,3]